Cogmind - Beta 9.2 @@@ ROGUE MODE // 2019.12.03 @ 11:23:15 Player: Cassie Rose Result: Self-destructed Performance ------------- Evolutions (1) 500 Regions Visited (2) 400 Robots Destroyed (28) 140 Value Destroyed (451) 451 Prototype IDs (2) 40 Alien Tech Used (0) 0 Bonus (0) 0 TOTAL SCORE: 1531 Bonus ------- None Cogmind --------- Core Integrity 303/400 Matter 300/300 Energy 265/265 System Corruption 5% Temperature Cool (0) Movement Treading (160) Location -9/Materials Parts ------- > --- POWER (1) -------- Improved Ion Engine > --- PROPULSION (3) --- Light Treads Light Treads > --- UTILITY (3) ------ Small Storage Unit > --- WEAPON (2) ------- (None) > --- INVENTORY (6) ---- Improved Terrain Scanner Datajack Peak State ------------ > --- POWER ------------ Improved Ion Engine > --- PROPULSION ------- Light Treads Compact Wheel Compact Wheel > --- UTILITY ---------- Small Storage Unit Improved Terrain Scanner > --- WEAPON ----------- Beam Cannon Rocket Launcher > --- INVENTORY -------- Light Treads Improved Terrain Scanner Beam Cannon Datajack [Rating: 11] Favorites ----------- Power Ion Engine Engine Ion Engine Propulsion Compact Wheel Treads Light Treads Wheel Compact Wheel Utility Small Storage Unit Device Improved Terrain Scanner Storage Small Storage Unit Protection Medium Armor Plating Weapon Beam Cannon Energy Gun Small Laser Energy Cannon Beam Cannon Launcher Grenade Launcher Build | -11 -10 -9 ------- Run | Scr Mat Mat Slots Evolved 2 | . . 2 Power . | . . . Propulsion 1 | . . 1 Utility 1 | . . 1 Weapon . | . . . Parts Attached 22 | 7 11 4 Power 4 | 1 3 . Engine 4 | 1 3 . Core . | . . . Reactor . | . . . Propulsion 6 | 2 2 2 Treads 2 | . . 2 Leg . | . . . Wheel 4 | 2 2 . Hover . | . . . Flight . | . . . Utility 3 | 2 . 1 Device 1 | 1 . . Storage 1 | 1 . . Processor . | . . . Hackware . | . . . Protection 1 | . . 1 Artifact . | . . . Weapon 9 | 2 6 1 Energy Gun 2 | 2 . . Energy Cannon 3 | . 2 1 Ballistic Gun . | . . . Ballistic Cannon . | . . . Launcher 4 | . 4 . Special Weapon . | . . . Impact Weapon . | . . . Slashing Weapon . | . . . Piercing Weapon . | . . . Special Melee Weapon . | . . . Unidentified Prototypes . | . . . Parts Lost 7 | . 1 6 Power . | . . . Propulsion 2 | . . 2 Utility 2 | . . 2 Weapon 3 | . 1 2 Highest Loss Streak 5 | . 1 5 Average Slot Usage (%) 92 | . 98 85 Engine 12 | . 14 11 Treads 4 | . . 11 Wheel 25 | . 28 21 Device 12 | . 14 10 Storage 12 | . 14 11 Protection 2 | . . 5 Energy Gun 3 | . 5 . Energy Cannon 10 | . 10 10 Launcher 7 | . 10 3 Naked Turns . | . . . Heaviest Build 22 | 13 19 22 Greatest Support 32 | 32 32 32 Greatest Overweight (x) . | . . . Average Overweight (x) . | . . . Largest Inventory Capacity 6 | 6 6 6 Average Capacity 5 | 5 6 6 Most Carried 6 | 4 6 4 Average Carried 3 | 1 5 2 Final Capacity 6 | 6 6 6 Final Carried 5 | 4 5 2 Class Distribution -------------------- 100% | Mutant Dominant Class ---------------- Mutant | -10/Materials Mutant | -9/Materials Resources | -11 -10 -9 ----------- Run | Scr Mat Mat Matter Collected 522 | 270 60 192 Remotely . | . . . Salvage Created 601 | 164 246 191 Parts 36 | 8 23 5 Haulers Intercepted 1 | . 1 . Recyclers Shooed 2 | . 2 . Parts Field Recycled . | . . . Retrieved Matter . | . . . Parts Self-Destructed . | . . . Prevented . | . . . Kills | -11 -10 -9 ------- Run | Scr Mat Mat Combat Hostiles Destroyed 16 | . 12 4 Guns 2 | . 2 . Cannons 6 | . 2 4 AOE 8 | . 8 . Classes Destroyed 9 | 2 6 1 Worker 1 | . 1 . Builder 2 | . 2 . Tunneler 3 | 3 . . Hauler 1 | . 1 . Recycler 1 | 1 . . Operator 1 | . . 1 Watcher 3 | . 2 1 Swarmer 10 | . 9 1 Grunt 6 | . 3 3 Best Kill Streak 9 | 2 9 3 Combat Bots Only 4 | . 4 1 Max Kills in Single Turn 3 | 1 3 1 Gunslinging . | . . . Exploded 3 | . 3 . Melee . | . . . Uniques/NPCs Destroyed . | . . . Combat | -11 -10 -9 -------- Run | Scr Mat Mat Damage Taken 1029 | . 487 542 Core 195 | . 98 97 Absorbed by Shields . | . . . Core Remaining (%) 80 | 100 60 . Volleys Fired 66 | 4 27 35 Largest 2 | 2 2 1 Hottest 120 | 90 120 60 Shots Fired 89 | 8 46 35 Gun 30 | 8 22 . Cannon 47 | . 12 35 Launcher 12 | . 12 . Special . | . . . Kinetic . | . . . Thermal 77 | 8 34 35 Explosive 12 | . 12 . Electromagnetic . | . . . Robot Hit Streak 12 | 2 12 7 Robot Miss Streak 5 | 1 5 3 Penetration Max . | . . . Secondary Targets 2 | . 2 . Max Gunslinging Chain 1 | . 1 . Shots Hit Robots 49 | 5 24 20 Core Hits 33 | 5 21 7 Critical Hits . | . . . Critical Kills . | . . . Critical Parts Destroyed . | . . . Melee Attacks . | . . . Impact . | . . . Slashing . | . . . Piercing . | . . . Sneak Attacks . | . . . Combat Hostiles . | . . . Follow-up Attacks . | . . . Damage Inflicted 1571 | 55 1098 418 Guns 103 | 55 48 . Cannons 608 | . 208 400 Explosions 842 | . 842 . Melee . | . . . Ramming 18 | . . 18 Kinetic . | . . . Thermal 711 | 55 256 400 Explosive 842 | . 842 . Electromagnetic . | . . . Impact . | . . . Slashing . | . . . Piercing . | . . . Highest Corruption 5 | . . 5 Average Corruption 5 | . . 5 Corruption Purged . | . . . Overload Shots . | . . . Overflow Damage 82 | . 77 5 Projectiles 5 | . . 5 Explosions 77 | . 77 . Melee . | . . . Knockbacks . | . . . Impact . | . . . Kinetic . | . . . Secondary . | . . . Self-Inflicted Damage 96 | . 96 . Shots 4 | . 4 . Rammed 6 | . . 6 Targets Rammed 6 | . . 6 Kicked . | . . . Crushed . | . . . Highest Temperature 329 | 30 329 278 Average Temperature 112 | 17 155 82 Received Heat Transfer 216 | . 84 132 Effects 3 | . 3 . Interference 3 | . 3 . Siege Activations . | . . . Robots Corrupted . | . . . Combat Hostiles . | . . . Parts Fried . | . . . Impact Corruptions . | . . . Robots Melted . | . . . Combat Hostiles . | . . . Parts Melted 3 | 1 1 1 Heat Transferred 1580 | 149 580 851 Parts Sabotaged . | . . . Parts Stolen . | . . . Parts Stripped . | . . . Power Chain Reactions . | . . . Missiles Intercepted . | . . . Alert | -11 -10 -9 ------- Run | Scr Mat Mat Peak Influence 308 | 20 308 247 Average Influence 142 | 7 182 138 Maximum Alert Level 1 | . 1 1 Low Security (%) 70 | 100 50 85 Level 1 29 | . 49 14 Level 2 . | . . . Level 3 . | . . . Level 4 . | . . . Level 5 . | . . . High Security . | . . . Max Security . | . . . Squads Dispatched 4 | . 1 3 Investigation 2 | . 1 1 Extermination . | . . . Reinforcement 2 | . . 2 Assault . | . . . Garrison . | . . . Intercept . | . . . Construction Impeded . | . . . Haulers Reinforced . | . . . Stealth | -11 -10 -9 --------- Run | Scr Mat Mat Distress Signals 4 | . 2 2 Communications Jammed . | . . . Distress Signals . | . . . Times Spotted 37 | . 14 23 Peak Tracking Total 11 | . 5 11 Tactical Retreats 3 | . . 3 Traps | -11 -10 -9 ------- Run | Scr Mat Mat Traps Triggered 2 | . 1 1 Indirectly . | . . . Trap Hack Attempts . | . . . Triggered . | . . . Disarmed . | . . . Reprogrammed . | . . . Reused . | . . . Traps Extracted . | . . . Installed . | . . . Triggered . | . . . Machines | -11 -10 -9 ---------- Run | Scr Mat Mat Machines Disabled 3 | . 1 2 Max in Single Turn 1 | . 1 1 Machines Sabotaged . | . . . Garrisons Compromised . | . . . Overloaded Fab Kills . | . . . Fab Network Shutdowns . | . . . Hacking | -11 -10 -9 --------- Run | Scr Mat Mat Machines Accessed 8 | . 5 3 Terminals 8 | . 5 3 Fabricators . | . . . Repair Stations . | . . . Recycling Units . | . . . Scanalyzers . | . . . Garrison Access . | . . . Total Hacks 25 | . 18 7 Successful 16 | . 12 4 Failed 9 | . 6 3 Catastrophic . | . . . Database Lockouts . | . . . Manual 17 | . 12 5 Terminals 25 | . 18 7 Fabricators . | . . . Repair Stations . | . . . Recycling Units . | . . . Scanalyzers . | . . . Garrison Access . | . . . Terminal Hacks 3 | . 3 . Prototype ID Bank 1 | . 1 . Branch Access Points 1 | . 1 . Emergency Access Points 1 | . 1 . Fabricator Hacks . | . . . Repair Station Hacks . | . . . Recycling Unit Hacks . | . . . Scanalyzer . | . . . Garrison Access Hacks . | . . . Unauthorized Hacks 30 | . 21 9 Terminals 13 | . 9 4 Assimilate 5 | . 4 1 Botnet 8 | . 5 3 Fabricators . | . . . Repair Stations . | . . . Recycling Units . | . . . Scanalyzers . | . . . Garrison Access . | . . . Data Cores Recovered . | . . . Used . | . . . Hacking Detections 8 | . 5 3 Full Trace Events . | . . . Feedback Events . | . . . Feedback Blocked . | . . . Robot Schematics Acquired . | . . . Robots Built . | . . . Matter . | . . . Time . | . . . Total Robot Build Rating . | . . . Part Schematics Acquired . | . . . Parts Built . | . . . Matter . | . . . Time . | . . . Total Part Build Rating . | . . . Parts Repaired . | . . . Time . | . . . Parts Recycled . | . . . Recycled Matter . | . . . Retrieved Matter . | . . . Retrieved Components . | . . . Parts Scanalyzed . | . . . Part Schematics Acquired . | . . . Parts Damaged . | . . . Bothacking | -11 -10 -9 ------------ Run | Scr Mat Mat Used RIF Installer . | . . . Robots Hacked . | . . . Non-combat . | . . . Combat . | . . . Robot Hacks Applied . | . . . Relay Couplers Released . | . . . Robots Rewired . | . . . Allies Hacked . | . . . Hacks Repelled . | . . . Allies | -11 -10 -9 -------- Run | Scr Mat Mat Total Allies . | . . . Largest Group . | . . . Highest-Rated Group . | . . . Highest-Rated Ally . | . . . Total Orders . | . . . Ally Attacks . | . . . Total Damage . | . . . Kills . | . . . Allies Corrupted . | . . . Allies Melted . | . . . Intel | -11 -10 -9 ------- Run | Scr Mat Mat Robot Analysis Total . | . . . Derelict Logs Recovered . | . . . Drone Launches . | . . . Drone Recoveries . | . . . Exploration | -11 -10 -9 ------------- Run | Scr Mat Mat Turns Passed 1136 | 150 561 425 Spaces Moved 887 | 123 431 333 Core 4 | 4 . . Treads 5 | . . 5 Legs . | . . . Wheels 878 | 119 431 328 Hover . | . . . Flight . | . . . Fastest Speed 50 | 50 90 100 Average Speed 100 | 98 99 100 Slowest Speed 160 | 100 100 160 Overloaded Moves . | . . . Propulsion Burnouts . | . . . Robots Hopped . | . . . Cave-ins Triggered . | . . . Exploration Rate (%) 34 | 4 75 23 Regions Visited 2 Branch Regions . Pre-discovered Areas . | . . . Known Exits Taken . | . . . Unknown Exits Taken 2 | 1 1 . Scrap Searched . | . . . Spaces Dug . | . . . Terrain Destroyed 55 | . 55 . Melee . | . . . Projectile . | . . . AOE 55 | . 55 . Actions | -11 -10 -9 --------- Run | Scr Mat Mat Total 1042 | 144 515 383 Wait 30 | . 27 3 Move 885 | 122 430 333 Hop . | . . . Pick Up 22 | 11 10 1 Fast Attach 1 | . 1 . Attach 11 | 7 1 3 Detach . | . . . Swap 10 | . 9 1 Drop 11 | . 10 1 Fire 66 | 4 27 35 Melee . | . . . Ram . | . . . Kick . | . . . Crush 6 | . . 6 Escape Stasis . | . . . Rewire . | . . . Trap . | . . . Miscellaneous . | . . . Route ------- -11/Scrapyard -10/Materials (discovered 4 exits: *Mat x2 / *Min x2) -9/Materials History --------- Turn | Location | Event 14 | -11/Scrapyard | Discovered new exit (range 15) 151 | -11/Scrapyard | Entered Materials 296 | -10/Materials | Discovered new exit (range 16) 346 | -10/Materials | Build established: Mutant 377 | -10/Materials | Discovered new exit (range 15) 482 | -10/Materials | Identified exit to Mines 665 | -10/Materials | Discovered new exit (range 8) 712 | -10/Materials | Entered another Materials area 712 | -9/Materials | Evolved 2 slots: Propulsion x1, Utility x1 1137 | -9/Materials | Self-destructed Last Messages --------------- 01042_ G-34 Mercenary unfolds itself. 01050_ G-47 Trooper destroyed. 01052_ Acquired 48 matter. 01053_ Acquired 43 matter. 01072_ R-06 Scavenger collects Lgt. Nuclear Core. 01097_ W-16 Scout sends out distress signal. 01102_ S-10 Pest destroyed. 01106_ ALERT: Hostiles spotted, dispatching reinforcements to Terminal M004. 01107_ Beam Cannon destroyed. 01108_ Imp. Terrain Scanner destroyed. 01115_ Door malfunctions. 01118_ Com. Wheel destroyed. 01124_ Slammed into G-34 Mercenary. 01126_ Slammed into S-10 Pest. 01127_ Med. Armor Plating destroyed. 01131_ Slammed into B-36 Bruiser. 01134_ Com. Wheel destroyed. 01134_ System corrupted by crushing effect (+5). 01135_ Slammed into S-10 Pest. Map ----- +----------------------------------------------------+ | ??# """"" # #???## #????# #???# | | ??# """ + ##########+#############+####### | | ??# # | | ??# # | | ??########### *%! " | | ########???## ###+######+############### = " | | ??# ## ## """"""" #?????# | | # ##""" ## """"""" #?#?#?# | | + ##""" ## """"""" ##????# | | # ##""" ## """"""" #???#?# | | ??# ## ## """"""" #?#??## | | ######/#????# ##""" ## #?????# | | ????#???#??? #""" ## / #????## ##### | | ?? ????? ??? #""" ## !##??#?# #???? | | ?????????? # #############????# #???? | | ??????????? #""" #?#??????????????# #???? | | ??????????## #""" #??????#????#????# #???? | | ???????????##### #""" ##???????????????# #???? | | ???????????????? # #?#???????????#??# ###?? | | ??????????????#? #########???#????#?#????# # #?# | | ?????????????#?? #??#???#??#????????#?#?## #?? | | ?????????????????#???#???????############# # #?# | | ?????????????????????######??# # ###?? | | ??????????????????????? #??# """"""" # #???? | | ???????????????? #???#??#b#??# """"""" # #???? | | ????????????????????????#@#### """"""" # #???? | | ???????????????????????##sg + """"""" # #???? | | ????????????????#########g#### """"""" + #???? | | ????????????????# # #?## # #???? | | ??????????#?#?#?# ! + #??############# #???? | | ????????????????# # #???????#??????# #???? | | ????????????????# # #???????#??#???# #???? | | ????????????????# # #??????????????# #???? | | ????????????????######### #??#???????????# #???? | | ??????????????????#######/##??#??????????# #???? | | ??????????????#?#?# s ##????????????# #???? | | ???????????????#??# ##????????????# #???? | | ??????????????????# #?#???????????# #???? | | ??????????????????# #????#????????# #???? | | ????????????? ?#??# #????#????#???? #???? | | ????????????????#?# s #???#??????#??? #???? | | ??????????????????# #?????????????? #???? | | ??????????????????# #?????????????? ????? | | ??????????????????# % #?????????????????????? | | ???????????????#??#####/####?????????????????????? | | ????????????? ???????# ????????????????????????? | | ?????????????????????# ????????????????????????? | | ?????????????????????# ???????????????????????? | | ?????????????????????+ ???????????????????????? | | ?????????????? ? ??? # ??????????????????????? | +----------------------------------------------------+ Best States ------------- Heat Dissipation 28 Energy Generation 12 Energy Capacity 265 Matter Stores 300 Matter Capacity 300 Sight Range 16 Terrain Scan Range 16 Terrain Scan Density 10 Armor Coverage 225 Evasion (%) 40 Recoil Reduction 1 Item Schematics ----------------- None Robot Schematics ------------------ None Fabricated ------------ Nothing Alien Tech Used ----------------- None Achievements -------------- None Challenges ------------ None Game ------ Seed CompactMakeshiftAnalyzer Manual? 0 Play Time 00:16:50 Cumulative 48.3 hours Start 2019.12.03 @ 11:10:37 End 2019.12.03 @ 11:23:15 Sessions 1 Manual Loads 0 Difficulty Rogue Special Mode None Game No. 73 Rogue 73 Adventurer 0 Explorer 0 Win Type - Total 0 Types 0/0/0/0/0/0/0 Lore% 22 Gallery% 21 Achievement% 23 Wizard Run 0 Options --------- ASCII 0 Keyboard 0 Movement Arrows Keybinds 0 Fullscreen 1 Font 18/SmallcapsGlow Map View 76x50 Tactical HUD 1 Map Filters NONE Filters LOW_CONTRAST(13,24,33)|BRIGHTNESS(120)|SATURATION(80) Steam 1 RUN: 5d3a4d05-8256-40fc-a2a3-6158e2820ff0